bitfinex/quotes_BTCUSD_20260126
["timestamp","ask_amount","ask_price","bid_price","bid_amount"]
[1769462722316,0.03,87971.0,87962.0,0.17488]
[1769462723056,0.03,87970.0,87962.0,0.17200805]
[1769462723907,0.03,87973.0,87962.0,0.17200805]
[1769462725977,0.03,87971.0,87962.0,0.17200805]
[1769462726911,0.03,87973.0,87962.0,0.17200805]
[1769462731820,0.03,87973.0,87957.0,0.02313279]
[1769462731821,0.03,87971.0,87957.0,0.02313279]
[1769462732023,0.04136789,87967.0,87950.0,0.91452106]
[1769462732227,0.03,87967.0,87950.0,0.91452106]
[1769462733004,0.03,87966.0,87950.0,0.91452106]
[1769462734070,0.52954935,87969.0,87950.0,0.91452106]
[1769462734071,0.03,87968.0,87950.0,0.91452106]
[1769462734813,0.0580773,87967.0,87950.0,0.91452106]
[1769462735029,0.03,87966.0,87950.0,0.91452106]
[1769462736023,0.03,87965.0,87950.0,0.91452106]
[1769462737049,0.03,87968.0,87950.0,0.91452106]
[1769462737247,0.03,87966.0,87950.0,0.91452106]
[1769462738229,0.03,87965.0,87950.0,0.91452106]
[1769462739244,0.03,87964.0,87950.0,0.91452106]
[1769462740284,0.03,87968.0,87950.0,0.91452106]
[1769462740430,0.03,87966.0,87950.0,0.91452106]
[1769462741498,0.03,87965.0,87950.0,0.91452106]
[1769462742678,0.03,87964.0,87950.0,0.91452106]
[1769462743175,0.03,87964.0,87955.0,0.02327281]
[1769462743522,0.03,87972.0,87955.0,0.02327281]
[1769462743722,0.03,87970.0,87955.0,0.02327281]
[1769462744319,0.0728411,87973.0,87955.0,0.02327281]
[1769462744519,0.5409166,87972.0,87955.0,0.02327281]
[1769462744802,0.03,87971.0,87955.0,0.02327281]
[1769462749664,0.03,87971.0,87955.0,0.55578308]
[1769462749872,0.03,87969.0,87955.0,0.55578308]
[1769462750745,0.03,87971.0,87955.0,0.55578308]
[1769462751340,0.03,87971.0,87956.0,0.02396674]
[1769462753232,0.03,87967.0,87955.0,0.00014002]
[1769462754443,0.03,87968.0,87955.0,0.00014002]
[1769462755247,0.33291661,87969.0,87955.0,0.00014002]
[1769462755461,0.32154897,87969.0,87955.0,0.00014002]
[1769462756176,0.03,87969.0,87957.0,0.02396674]
[1769462756362,0.03,87969.0,87957.0,0.55564306]
[1769462756567,0.03,87969.0,87958.0,0.02396674]
[1769462756771,0.03,87969.0,87958.0,0.55564306]
[1769462757189,0.03,87968.0,87958.0,0.55564306]
[1769462757453,0.03,87968.0,87959.0,0.04927731]
[1769462758027,0.03,87968.0,87958.0,0.55564306]
[1769462758365,0.01136712,87973.0,87958.0,0.55564306]
[1769462758519,0.28259844,87974.0,87958.0,0.55564306]
[1769462758719,0.01156673,87976.0,87955.0,0.00014002]
[1769462758720,0.39287365,87970.0,87955.0,0.00014002]
[1769462758919,0.2163916,87968.0,87955.0,0.00014002]
[1769462759914,0.28459822,87968.0,87955.0,0.00014002]
[1769462760142,0.2845983,87968.0,87955.0,0.00014002]
[1769462760344,0.01136789,87967.0,87955.0,0.00014002]
[1769462760693,0.28459829,87968.0,87955.0,0.00014002]
[1769462760694,0.2163916,87968.0,87955.0,0.00014002]
[1769462761244,0.01876994,87967.0,87955.0,0.00014002]
[1769462763586,0.2163916,87968.0,87952.0,0.55564306]
[1769462763906,0.21653154,87968.0,87952.0,0.55564306]
[1769462764497,0.21653154,87968.0,87952.0,0.51379688]
[1769462764739,0.00013994,87968.0,87953.0,0.02396674]
[1769462764917,0.00013994,87968.0,87953.0,0.55564306]
[1769462765128,0.00013994,87968.0,87953.0,0.51377797]
[1769462766964,0.03,87967.0,87953.0,0.51377797]
[1769462767162,0.05265598,87967.0,87953.0,0.51377797]
[1769462768448,0.05265598,87967.0,87953.0,0.45845213]
[1769462769049,0.05265598,87967.0,87953.0,0.40310434]
[1769462769382,0.06402387,87967.0,87953.0,0.40310434]
[1769462769586,0.03,87966.0,87953.0,0.40310434]
[1769462770510,0.21932952,87970.0,87953.0,0.42707108]
[1769462770716,0.03,87969.0,87953.0,0.42707108]
[1769462777909,0.03,87968.0,87953.0,0.42707108]
[1769462778229,0.03,87968.0,87954.0,0.55564306]
[1769462778965,0.03,87967.0,87954.0,0.55564306]
[1769462779955,0.03,87966.0,87954.0,0.55564306]
[1769462780516,0.03,87966.0,87956.0,0.59662603]
[1769462781014,5.303e-05,87970.0,87956.0,0.59662603]
[1769462784549,5.303e-05,87970.0,87956.0,0.59646747]
[1769462784915,5.303e-05,87970.0,87956.0,0.59630891]
[1769462786118,0.03005303,87970.0,87956.0,0.59630891]
[1769462787013,0.03,87968.0,87956.0,0.59630891]
[1769462787989,0.03005303,87970.0,87956.0,0.59630891]
[1769462788205,0.03,87968.0,87956.0,0.59630891]
[1769462789190,0.03,87969.0,87956.0,0.59630891]
[1769462790286,0.03,87968.0,87956.0,0.59630891]
[1769462791259,5.303e-05,87970.0,87956.0,0.59630891]
[1769462792742,0.03005303,87970.0,87956.0,0.59630891]
[1769462793710,0.03,87969.0,87956.0,0.59630891]
[1769462794572,0.23870716,87974.0,87956.0,0.59630891]
[1769462794779,0.08683904,87968.0,87956.0,0.59636194]
[1769462794945,0.03,87966.0,87956.0,0.59636194]
[1769462797055,0.03,87965.0,87956.0,0.59636194]
[1769462798070,0.03,87968.0,87956.0,0.59636194]
[1769462798602,0.03,87966.0,87956.0,0.59636194]
[1769462798829,0.03,87966.0,87956.0,0.5846283]
[1769462799684,0.03,87967.0,87956.0,0.5846283]
[1769462802451,0.04136789,87967.0,87956.0,0.5846283]
[1769462802672,0.03,87969.0,87956.0,0.5846283]
[1769462802797,0.03,87967.0,87956.0,0.5846283]
[1769462802989,0.03,87967.0,87956.0,0.58446973]
[1769462804449,0.03,87966.0,87956.0,0.58446973]
[1769462805602,0.04136777,87968.0,87956.0,0.58446973]
[1769462805762,0.03,87968.0,87956.0,0.58446973]
[1769462805966,0.03,87968.0,87956.0,0.6429167]
[1769462807104,0.03,87968.0,87956.0,0.58446973]
[1769462807323,0.03,87966.0,87956.0,0.58446973]
[1769462808286,0.03,87967.0,87956.0,0.58446973]
[1769462809388,0.03,87966.0,87956.0,0.58446973]
[1769462810438,0.03,87965.0,87956.0,0.58446973]
[1769462811407,0.03,87964.0,87956.0,0.58446973]
[1769462812442,0.03,87963.0,87956.0,0.58446973]
[1769462813114,0.03,87963.0,87956.0,5.303e-05]
[1769462813261,0.03,87955.0,87940.0,0.5805956]
[1769462813526,0.03,87955.0,87941.0,0.02758461]
[1769462813722,0.80079173,87960.0,87940.0,0.58073554]
[1769462813723,0.03,87944.0,87940.0,0.00013994]
[1769462814405,0.38153338,87950.0,87940.0,0.00013994]
[1769462814606,0.03,87953.0,87940.0,0.00013994]
[1769462815311,0.03,87949.0,87940.0,0.00013994]
[1769462816098,0.03,87951.0,87940.0,0.00013994]
[1769462817219,0.03,87950.0,87940.0,0.00013994]
[1769462817995,0.03,87950.0,87933.0,0.5805956]
[1769462818200,0.03,87949.0,87935.0,0.02983274]
[1769462819048,0.03,87949.0,87938.0,0.04213903]
[1769462819275,0.00010074,87950.0,87939.0,0.38153338]
[1769462819503,0.03416395,87961.0,87942.0,0.5805956]
[1769462819699,0.01800887,87964.0,87945.0,0.02983274]
[1769462819700,0.0001749,87964.0,87945.0,0.02983274]
[1769462819929,0.03433675,87964.0,87949.0,0.02983274]
[1769462820130,0.03433675,87964.0,87951.0,0.61042834]
[1769462820287,0.03,87963.0,87951.0,0.61042834]
[1769462821054,0.03,87963.0,87951.0,0.5805956]
[1769462821262,0.03,87963.0,87952.0,0.02983274]
[1769462821450,0.03,87963.0,87952.0,0.02671512]
[1769462821650,0.03,87963.0,87952.0,0.0111209]
[1769462821884,0.03,87963.0,87951.0,0.5805956]
[1769462822103,0.03,87963.0,87945.0,0.00010074]
[1769462822104,0.03,87969.0,87956.0,0.5805956]
[1769462822323,0.0001749,87974.0,87958.0,0.57514584]
[1769462822539,0.01136712,87973.0,87958.0,0.56288253]
[1769462822749,0.01154189,87974.0,87958.0,0.55590951]
[1769462822953,0.11362985,87973.0,87959.0,0.01908141]
[1769462823161,0.14362985,87972.0,87960.0,0.57123736]
[1769462823359,0.03,87970.0,87960.0,0.56778788]
[1769462823584,0.03,87968.0,87960.0,0.57804644]
[1769462823749,0.03,87968.0,87960.0,0.56982128]
[1769462824180,0.0301561,87968.0,87960.0,0.56191801]
[1769462824363,0.0301561,87968.0,87960.0,0.5548882]
[1769462824591,0.03,87967.0,87960.0,0.54764744]
[1769462825204,0.0301561,87967.0,87960.0,0.54764744]
[1769462825607,0.0001561,87967.0,87960.0,0.54764744]
[1769462837417,0.0002,87976.0,87964.0,0.5805956]
[1769462837618,0.11363484,87975.0,87966.0,0.5805956]
[1769462837801,0.0002,87976.0,87966.0,0.5805956]
[1769462838139,0.0002,87984.0,87970.0,0.5805956]
[1769462838321,0.0002,87984.0,87971.0,0.5805956]
[1769462838520,0.03,87982.0,87971.0,0.5805956]
[1769462838730,0.03,87980.0,87971.0,0.5805956]
[1769462839640,0.0002,87984.0,87971.0,0.5805956]
[1769462839641,0.03,87979.0,87971.0,0.5805956]
[1769462840604,0.03,87978.0,87971.0,0.5805956]
[1769462841725,0.0002,87984.0,87971.0,0.5805956]
[1769462841911,0.03,87982.0,87971.0,0.5805956]
[1769462842560,0.03,87982.0,87973.0,0.56082028]
[1769462842765,0.01422872,87990.0,87973.0,0.56082028]
[1769462842941,0.14352573,87989.0,87973.0,0.58522753]
[1769462843153,0.03,87987.0,87973.0,0.58522753]
[1769462843796,0.03046695,87987.0,87973.0,0.58522753]
[1769462844176,0.03,87986.0,87973.0,0.58522753]
[1769462845171,0.03,87985.0,87973.0,0.58522753]
[1769462846434,0.03,87984.0,87973.0,0.58522753]
[1769462847397,0.03,87983.0,87973.0,0.58522753]
[1769462848359,0.03,87982.0,87973.0,0.58522753]
[1769462849524,0.00046695,87987.0,87973.0,0.58522753]
[1769462849839,0.03,87985.0,87970.0,0.38153338]
[1769462850076,0.0002777,87998.0,87961.0,0.1750177]
[1769462850077,0.03,87994.0,87980.0,0.02440725]
[1769462850318,0.03,87994.0,87981.0,0.56082028]
[1769462850319,0.11360767,87993.0,87981.0,0.56082028]
[1769462850539,0.11360767,87992.0,87981.0,0.56082028]
[1769462850744,0.00013994,87994.0,87981.0,0.56082028]
[1769462850957,0.03,87992.0,87981.0,0.56082028]
[1769462851982,0.00013994,87994.0,87981.0,0.56082028]
[1769462851983,0.03,87991.0,87981.0,0.56082028]
[1769462852800,0.03,87989.0,87981.0,0.56082028]
[1769462854023,0.03,87988.0,87981.0,0.56082028]
[1769462855015,0.00013994,87994.0,87981.0,0.56082028]
[1769462856157,0.00013994,87994.0,87981.0,0.58522753]
[1769462859132,0.03013994,87994.0,87981.0,0.58522753]
[1769462860133,0.00013994,87994.0,87981.0,0.58522753]
[1769462861692,0.03,87993.0,87982.0,0.02440725]
[1769462861853,0.03,87993.0,87983.0,0.58522753]
[1769462862649,0.00013994,87994.0,87983.0,0.58522753]
[1769462865116,0.03,88006.0,87984.0,0.94235366]
[1769462865322,0.03,88004.0,87986.0,0.58522753]
[1769462865529,0.03,88002.0,87986.0,0.58522753]
[1769462865793,0.03,88000.0,87986.0,0.58522753]
[1769462866747,0.03,87999.0,87986.0,0.58522753]
[1769462866953,0.03,87999.0,87987.0,0.65971357]
[1769462867258,0.02158219,88005.0,87987.0,0.65971357]
[1769462867454,0.11365356,88004.0,87987.0,0.65971357]
[1769462867679,0.11365356,88003.0,87987.0,0.65971357]
[1769462867860,0.14365356,88002.0,87987.0,0.65971357]
[1769462868059,0.03,88000.0,87988.0,0.02780345]
[1769462868442,0.03,88000.0,87987.0,0.56082028]
[1769462869101,0.03,88000.0,87987.0,0.5834022]
[1769462869416,0.03,87999.0,87987.0,0.02258192]
[1769462869627,0.03,87999.0,87987.0,0.59924001]
[1769462870262,0.03,87998.0,87987.0,0.59924001]
[1769462871310,0.03,88004.0,87987.0,0.59924001]
[1769462871515,0.03,88002.0,87987.0,0.59924001]
[1769462871699,0.03,88000.0,87987.0,0.59924001]
[1769462871940,0.03,87998.0,87987.0,0.59924001]
[1769462873172,0.03,87997.0,87987.0,0.59924001]
[1769462874165,0.03,88004.0,87987.0,0.59924001]
[1769462874367,0.01805044,88007.0,87987.0,0.59924001]
[1769462874569,0.0113626,88008.0,87986.0,0.02258192]
[1769462874796,0.01136273,88007.0,87989.0,0.57665809]
[1769462874972,0.06817565,88008.0,87989.0,0.59924001]
[1769462875175,0.09151873,88008.0,87989.0,0.59924001]
[1769462875410,0.03,88006.0,87990.0,0.059938]
[1769462875736,0.03,88004.0,87990.0,0.059938]
[1769462876552,0.03,88004.0,87989.0,0.59924001]
[1769462876981,0.04136311,88004.0,87989.0,0.59924001]
[1769462877193,0.03,88000.0,87989.0,0.59924001]
[1769462878137,0.03,88001.0,87989.0,0.59924001]
[1769462879431,0.03,88000.0,87989.0,0.59924001]
[1769462880351,0.03,87999.0,87989.0,0.59924001]
[1769462881561,0.0002,88090.0,87990.0,0.57665809]
[1769462881562,0.0001889,88009.0,87990.0,0.57665809]
[1769462881783,0.01155137,88009.0,87992.0,0.57665809]
[1769462882000,0.01155137,88009.0,87992.0,0.59924001]
[1769462882184,0.0001889,88009.0,87992.0,0.65916401]
[1769462882562,0.05353198,88009.0,87992.0,0.65916401]
[1769462882772,0.03,88006.0,87992.0,0.65916401]
[1769462882949,0.03,88006.0,87992.0,0.59924001]
[1769462883865,0.03,88007.0,87992.0,0.59924001]
[1769462885897,0.03,88006.0,87992.0,0.59924001]
[1769462886901,0.03,88005.0,87992.0,0.59924001]
[1769462887535,0.03,88005.0,87992.0,0.57665809]
[1769462888175,0.04136299,88005.0,87992.0,0.57665809]
[1769462888378,0.03,88005.0,87992.0,0.57665809]
[1769462889471,0.03,88004.0,87992.0,0.57665809]
[1769462890603,0.03,88003.0,87992.0,0.57665809]
[1769462891413,0.03,88003.0,87987.0,0.02258192]
[1769462891626,0.03,87998.0,87984.0,0.00013994]
[1769462891833,0.03,87996.0,87984.0,0.00013994]
[1769462892199,0.03,87996.0,87984.0,0.57679803]
[1769462897288,0.03,87995.0,87984.0,0.57679803]
[1769462897487,0.03,87995.0,87984.0,0.59823891]
[1769462898324,0.03,88002.0,87984.0,0.57679803]
[1769462899305,0.03,88002.0,87984.0,0.60108837]
[1769462902005,0.03,88004.0,87984.0,0.60108837]
[1769462902208,0.03,88002.0,87984.0,0.60108837]
[1769462902605,0.05441465,88002.0,87984.0,0.60108837]
[1769462903614,0.06836379,88009.0,87991.0,0.52700221]
[1769462903615,0.0001889,88009.0,87991.0,0.52700221]
[1769462903839,0.03,88005.0,87986.0,0.02429034]
[1769462904064,0.03,88005.0,87988.0,0.52700221]
[1769462904065,0.05441465,88005.0,87988.0,0.52700221]
[1769462904275,0.03,88003.0,87988.0,0.52700221]
[1769462905332,0.03,88003.0,87989.0,0.60417346]
[1769462906780,0.03,88003.0,87989.0,0.52700221]
[1769462909614,0.03,88002.0,87991.0,0.52700221]
[1769462909831,0.03,88002.0,87991.0,0.55129255]
[1769462910636,0.06596602,88009.0,87991.0,0.55129255]
[1769462911099,0.03,88007.0,87991.0,0.55129255]
[1769462911635,0.03,88005.0,87992.0,0.01407062]
[1769462912644,0.03,88007.0,87992.0,0.01407062]
[1769462912850,0.02441465,88007.0,87992.0,0.01407062]
[1769462913354,0.03,88003.0,87992.0,0.01407062]
[1769462914019,0.03,88003.0,87991.0,0.52700221]
[1769462914462,0.03,88002.0,87991.0,0.52700221]
[1769462915514,0.03,88001.0,87991.0,0.52700221]
[1769462916493,0.03,88000.0,87991.0,0.52700221]
[1769462917141,0.03,88000.0,87989.0,0.17476]
[1769462917498,0.03,87999.0,87989.0,0.17476]
[1769462918519,0.03,87998.0,87989.0,0.17476]
[1769462919157,0.05681497,88005.0,87989.0,0.17476]
[1769462919364,0.01136299,88005.0,87989.0,0.17476]
[1769462919589,0.03,88004.0,87989.0,0.17476]
[1769462920543,0.03,88005.0,87989.0,0.17476]
[1769462920786,0.03,88003.0,87989.0,0.17476]
[1769462921413,0.03,88003.0,87989.0,0.19905034]
[1769462921823,0.03,88004.0,87989.0,0.19905034]
[1769462922640,0.04136311,88004.0,87989.0,0.19905034]
[1769462923054,0.09817876,88004.0,87989.0,0.19905034]
[1769462923462,0.03,88002.0,87989.0,0.19905034]
[1769462924658,0.03,88001.0,87989.0,0.19905034]
[1769462925401,0.03,88000.0,87989.0,0.19905034]
[1769462926689,0.03,88004.0,87989.0,0.19905034]
[1769462927755,0.04136311,88004.0,87989.0,0.19905034]
[1769462928737,0.03,88002.0,87989.0,0.02429034]
[1769462928942,0.03,88002.0,87989.0,0.19905034]
[1769462929771,0.03,88003.0,87989.0,0.19905034]
[1769462930671,0.04136324,88003.0,87989.0,0.19905034]
[1769462930858,0.03,88003.0,87989.0,0.19905034]
[1769462931250,0.03,88002.0,87989.0,0.19905034]
[1769462932470,0.03,88003.0,87989.0,0.19905034]
[1769462935039,0.03,88002.0,87989.0,0.19905034]
[1769462936328,0.03,88003.0,87989.0,0.19905034]
[1769462936517,0.04136324,88003.0,87989.0,0.19905034]
[1769462936732,0.03,88003.0,87989.0,0.19905034]
[1769462937370,0.04136324,88003.0,87989.0,0.19905034]
[1769462937786,0.0981795,88003.0,87989.0,0.19905034]
[1769462938005,0.00594234,88022.0,87989.0,0.17476]
[1769462938216,0.00594234,88022.0,87992.0,0.02426293]
[1769462938217,0.03,88007.0,87992.0,0.02426293]
[1769462938428,0.03,88007.0,87996.0,0.02426293]
[1769462938640,0.03,88007.0,88000.0,0.02426293]
[1769462938869,0.03,88007.0,88001.0,0.02426293]
[1769462939330,0.03,88006.0,88001.0,0.02426293]
[1769462940340,0.03,88013.0,88001.0,0.08160278]
[1769462940543,0.03,88000.0,87997.0,0.54913554]
[1769462940854,0.03,88000.0,87999.0,0.02263416]
[1769462941187,0.03,88000.0,87999.0,0.5717697]
[1769462944794,0.03,88009.0,87999.0,0.5717697]
[1769462945975,0.04136247,88009.0,87999.0,0.5717697]
[1769462946148,0.03,88009.0,87999.0,0.5717697]
[1769462947520,0.03,88010.0,87999.0,0.5717697]
[1769462948505,0.03,88009.0,87999.0,0.5717697]
[1769462949603,0.03,88013.0,87999.0,0.5717697]
[1769462950708,0.03,88012.0,88000.0,0.02263416]
[1769462951855,0.03,88011.0,88000.0,0.02263416]
[1769462953031,0.03,88010.0,88000.0,0.02263416]
[1769462954244,0.03,88009.0,88000.0,0.02263416]
[1769462955290,0.03,88008.0,88000.0,0.02263416]
[1769462955783,0.03,88008.0,88000.0,0.57146972]
[1769462955993,0.03,88008.0,88001.0,0.02263416]
[1769462956194,0.03,88007.0,88001.0,0.02263416]
[1769462957185,0.03,88006.0,88001.0,0.02263416]
[1769462957382,0.03,88006.0,88001.0,0.07981113]
[1769462957974,0.03,88006.0,88001.0,0.02263416]
[1769462958186,0.03,88006.0,88003.0,0.54913554]
[1769462958399,0.03,88005.0,88003.0,0.5717697]
[1769462959051,0.0001476,88014.0,87991.0,0.17476]
[1769462959272,0.0001476,88014.0,88001.0,0.52261999]
[1769462959476,0.0001476,88014.0,88010.0,0.02]
[1769462959681,0.0001476,88014.0,88011.0,0.02395813]
[1769462960956,0.00020588,88014.0,88011.0,0.02395813]
[1769462961826,0.00020588,88014.0,88011.0,0.56069708]
[1769462965069,0.00020588,88014.0,88010.0,0.02]
[1769462965070,0.0001461,88023.0,88012.0,0.53673895]
[1769462965269,0.0001461,88023.0,88013.0,0.02395813]
[1769462966057,0.0301461,88023.0,88013.0,0.02395813]
[1769462966243,0.0301461,88023.0,88015.0,0.01723013]
[1769462967168,0.03,88022.0,88015.0,0.01723013]
[1769462967568,0.0001461,88023.0,88016.0,0.026586]
[1769462967882,0.0001461,88023.0,88016.0,0.023172]
[1769462968088,0.0001461,88023.0,88016.0,0.019758]
[1769462968268,0.0001461,88023.0,88016.0,0.016344]
[1769462968690,0.0001461,88023.0,88016.0,0.02787883]
[1769462969005,0.0001461,88023.0,88016.0,0.01978627]
[1769462969217,0.0001461,88023.0,88016.0,0.01506163]
[1769462969517,0.0001461,88023.0,88015.0,0.01723013]
[1769462969957,0.0001461,88023.0,88016.0,0.03]
[1769462972041,0.0001461,88023.0,88016.0,0.02805375]
[1769462972245,0.0001461,88023.0,88016.0,0.01930134]
[1769462972427,0.0001461,88023.0,88016.0,0.03]
[1769462973031,0.0001461,88023.0,88016.0,0.02902678]
[1769462973254,0.0001461,88023.0,88015.0,0.01723013]
[1769462973700,0.0001461,88032.0,88017.0,0.02395813]
[1769462974001,0.00022026,88032.0,88018.0,0.53673895]
[1769462974559,0.00022026,88032.0,88017.0,0.02395813]
[1769462976997,0.00022026,88032.0,88018.0,0.53673895]
[1769462977221,0.05801759,88032.0,88018.0,0.53673895]
[1769462978056,0.05801759,88032.0,88010.0,0.40123154]
[1769462978057,0.0001461,88040.0,88022.0,0.02395813]
[1769462978255,0.0001461,88040.0,88025.0,0.53673895]
[1769462978256,0.00019376,88040.0,88025.0,0.53673895]
[1769462978513,0.00019376,88040.0,88027.0,0.56069708]
[1769462979773,4.766e-05,88040.0,88027.0,0.56069708]
[1769462980669,4.766e-05,88040.0,88027.0,0.55985447]
[1769462985660,0.06246786,88047.0,88027.0,0.53589634]
[1769462985998,0.01135769,88046.0,88028.0,0.61428671]
[1769462986135,0.06814599,88047.0,88029.0,0.02395813]
[1769462986314,0.01135769,88046.0,88029.0,0.55345014]
[1769462986516,0.01135769,88046.0,88029.0,0.54439068]
[1769462986717,0.06814629,88046.0,88029.0,0.53623643]
[1769462986956,0.0339026,88046.0,88029.0,0.52898761]
[1769462987133,0.02254491,88046.0,88029.0,0.52083203]
[1769462987350,0.02254491,88046.0,88029.0,0.53663387]
[1769462987553,0.02254491,88046.0,88029.0,0.52938325]
[1769462987755,0.02254491,88046.0,88029.0,0.52122563]
[1769462987935,0.02254491,88046.0,88029.0,0.51216079]
[1769462988148,0.02254491,88046.0,88029.0,0.50309508]
[1769462988351,0.02254491,88046.0,88029.0,0.4949352]
[1769462988557,0.02254491,88046.0,88029.0,0.48586783]
[1769462988757,0.02254491,88046.0,88029.0,0.48133383]
[1769462989044,0.60699941,88048.0,88031.0,0.56202294]
[1769462989045,0.06314986,88048.0,88031.0,0.56202294]
[1769462989251,0.06314986,88048.0,88033.0,0.53861456]
[1769462989447,0.06314986,88048.0,88033.0,0.53853604]
[1769462989646,0.06314986,88048.0,88033.0,0.56194442]
[1769462989855,0.06314986,88048.0,88033.0,0.55468838]
[1769462990102,0.06314986,88048.0,88033.0,0.54652154]
[1769462990280,0.06314986,88048.0,88033.0,0.53925878]
[1769462993228,0.0745073,88048.0,88033.0,0.53925878]
[1769462993385,0.01135757,88047.0,88033.0,0.53925878]
[1769462993603,0.0745073,88048.0,88033.0,0.53925878]
[1769462993798,0.0745073,88048.0,88033.0,0.5158504]
[1769462993799,0.06814586,88047.0,88033.0,0.5158504]
[1769462993997,0.01135757,88047.0,88033.0,0.5158504]
[1769462994222,0.01135769,88046.0,88033.0,0.5158504]
[1769462994632,0.03556244,88047.0,88033.0,0.5158504]
[1769462994876,0.01135769,88046.0,88033.0,0.51569336]
[1769462995371,0.01135782,88045.0,88033.0,0.51569336]
[1769462995505,0.01135769,88046.0,88033.0,0.51569336]
[1769462995877,0.06814627,88046.0,88033.0,0.51569336]
[1769462996153,0.01135795,88044.0,88027.0,0.02345604]
[1769462996383,0.01135795,88044.0,88028.0,0.53861456]
[1769462996575,0.01135782,88045.0,88028.0,0.53861456]
[1769462996776,0.01135795,88044.0,88028.0,0.53861456]
[1769462997116,0.06814705,88045.0,88028.0,0.53861456]
[1769462997117,0.01135782,88045.0,88028.0,0.53861456]
[1769462997336,0.01135795,88044.0,88028.0,0.53861456]
[1769462997972,0.01135795,88044.0,88027.0,0.02345604]
[1769462997973,0.0001887,88048.0,88032.0,0.02340838]
[1769462998175,0.0001887,88048.0,88035.0,0.53861456]
[1769462998376,0.0001887,88048.0,88037.0,0.53589032]
[1769462998638,0.0001887,88048.0,88037.0,0.52499094]
[1769462998844,0.0001887,88048.0,88037.0,0.52491241]
[1769463001807,0.0001887,88048.0,88037.0,0.52036951]
[1769463002012,0.0001887,88048.0,88037.0,0.51475987]
[1769463002263,0.0001887,88048.0,88037.0,0.50685943]
[1769463002502,0.0001887,88048.0,88037.0,0.50362976]
[1769463002699,0.0001887,88048.0,88037.0,0.50080709]
[1769463002894,0.0001887,88048.0,88037.0,0.49892486]
[1769463004871,0.0001887,88048.0,88031.0,0.56202294]
[1769463004872,0.00999999,88037.0,88031.0,0.56202294]
[1769463005287,0.00999999,88037.0,88027.0,4.766e-05]
[1769463005288,0.0147107,88047.0,88032.0,0.02340838]
[1769463005491,0.0147107,88047.0,88033.0,0.56202294]
[1769463005704,0.0001887,88048.0,88033.0,0.56202294]
[1769463007997,0.09099654,88055.0,88038.0,0.38089652]
[1769463008157,0.09099654,88055.0,88042.0,0.53861456]
[1769463008158,0.0002,88055.0,88042.0,0.53861456]
[1769463008362,0.0002,88055.0,88046.0,0.53861456]
[1769463008536,0.0002,88055.0,88046.0,0.53853604]
[1769463009362,0.09079654,88064.0,88041.0,0.02340838]
[1769463009688,0.10230406,88066.0,88045.0,0.02340838]
[1769463009989,0.10230406,88066.0,88049.0,0.02340838]
[1769463010130,0.01150752,88066.0,88050.0,0.56202294]
[1769463010335,0.0001524,88066.0,88050.0,0.56072078]
[1769463010547,0.0001524,88066.0,88051.0,0.53846986]
[1769463010768,0.0001524,88066.0,88051.0,0.53716744]
[1769463010985,0.17227475,88072.0,88052.0,0.05826474]
[1769463010986,0.09079654,88070.0,88052.0,0.05826474]
[1769463011191,0.09079654,88074.0,88055.0,0.02340838]
[1769463011401,0.0001524,88075.0,88061.0,0.53861456]
[1769463011574,0.0001524,88075.0,88063.0,0.53861456]
[1769463012196,0.0001524,88075.0,88065.0,0.38089652]
[1769463012470,0.0002,88082.0,88071.0,0.53861456]
[1769463012678,0.00033979,88082.0,88071.0,0.53853604]
[1769463013319,0.00033979,88082.0,88071.0,0.53839132]
[1769463013510,0.00033979,88082.0,88071.0,0.59457129]
[1769463013827,0.0001658,88084.0,88072.0,0.02340838]
[1769463014026,0.0001658,88084.0,88073.0,0.56202294]
[1769463014371,0.0001658,88084.0,88072.0,0.00013979]
[1769463014372,0.0021,88085.0,88074.0,0.53861456]
[1769463014580,0.0021,88085.0,88074.0,0.56202294]
[1769463018322,0.69956014,88099.0,88072.0,0.00013979]
[1769463018323,0.000187,88106.0,88077.0,0.02340838]
[1769463018553,0.000187,88106.0,88090.0,0.02340838]
[1769463018762,0.000187,88106.0,88093.0,0.54600348]
[1769463018902,0.02449187,88117.0,88094.0,0.02318314]
[1769463018903,0.000287,88117.0,88094.0,0.02318314]
[1769463019128,0.000287,88117.0,88090.0,0.42637652]
[1769463019129,0.01134944,88110.0,88097.0,0.54600348]
[1769463019314,0.38089652,88110.0,88097.0,0.54600348]
[1769463019932,0.0113488,88115.0,88097.0,0.54600348]
[1769463019933,0.22695972,88122.0,88097.0,0.02660347]
[1769463020135,0.0001,88117.0,88103.0,0.02442011]
[1769463020337,0.0001,88117.0,88104.0,0.54778278]
[1769463020952,0.0001,88117.0,88108.0,0.54788278]
[1769463021153,0.0001,88117.0,88100.0,0.38089652]
[1769463021154,0.03244235,88121.0,88111.0,0.02442011]
[1769463021378,0.03244235,88121.0,88112.0,0.54788278]
[1769463021379,0.03258212,88121.0,88112.0,0.54788278]
[1769463021753,0.03258212,88121.0,88111.0,0.02442011]
[1769463022000,0.03258212,88121.0,88106.0,0.54788278]
[1769463023133,0.03235042,88121.0,88106.0,0.54788278]
[1769463023747,0.03203256,88121.0,88106.0,0.54788278]
[1769463023952,0.03203256,88121.0,88106.0,0.60706443]
[1769463024147,0.03173172,88121.0,88106.0,0.60706443]
[1769463024350,0.01134829,88119.0,88106.0,0.60706443]
[1769463024999,0.0113488,88115.0,88090.0,0.38089652]
[1769463025209,0.55161777,88110.0,88092.0,0.57230289]
[1769463025434,0.02317705,88110.0,88094.0,0.54788278]
[1769463025644,0.0113497,88108.0,88094.0,0.54188278]
[1769463025861,0.229418,88110.0,88095.0,0.05663029]
[1769463026064,0.01134919,88112.0,88096.0,0.57230289]
[1769463026279,0.01134906,88113.0,88096.0,0.57230289]
[1769463027104,0.01134919,88112.0,88096.0,0.57230289]
[1769463027319,0.01134944,88110.0,88096.0,0.57230289]
[1769463027722,0.01134957,88109.0,88096.0,0.57230289]
[1769463027930,0.01134919,88112.0,88097.0,0.07923829]
[1769463028140,0.56296657,88115.0,88097.0,0.07923829]
[1769463028312,0.01134893,88114.0,88097.0,0.65154118]
[1769463028921,0.01134906,88113.0,88097.0,0.65154118]
[1769463029120,0.01134893,88114.0,88097.0,0.65154118]
[1769463029328,0.56296657,88115.0,88097.0,0.65154118]